[Event "Summer Chess Classic-A 2022"]
[Site "Saint Louis"]
[Date "2022.06.09"]
[Round "8.3"]
[White "Smirin, Ilia"]
[Black "Mishra, Abhimanyu"]
[Result "1/2-1/2"]
[ECO "B70"]
[WhiteElo "2599"]
[BlackElo "2535"]
[Annotator "TA"]
[PlyCount "95"]
[EventDate "2022.05.31"]
[EventType "tourn"]
[EventCountry "USA"]
[SourceTitle "playchess.com"]
[Source "ChessBase"]
[SourceQuality "1"]
[TimeControl "40/5400+30:1800+30"]

{[%evp 23,95,0,19,12,16,0,-7,-9,0,0,12,5,4,-24,-9,-11,0,-7,0,0,0,0,0,-4,0,0,6,6,6,6,20,21,38,45,45,45,31,16,16,16,17,14,18,21,45,45,45,45,45,45,45,45,45,45,45,45,45,45,45,45,45,45,45,45,45,0,41,37,38,37,42,41,66,0]} 1. e4 {[%emt 0:02:36]} c5 {[%emt 0:00:07]} 2. Ne2 {[%emt 0:00:13]} Nf6 {[%emt 0:00:40]} 3. Nbc3 {[%emt 0:00:12]} d6 {[%emt 0:00:15]} 4. g3 {[%emt 0:00:53]} g6 {[%emt 0:00:58]} 5. d4 {[%emt 0:01:16]} cxd4 {[%emt 0:00:19]} 6. Nxd4 {[%emt 0:00:06]} Nc6 {[%emt 0:00:58]} 7. Nde2 {[%emt 0:01:37]} Bg7 {[%emt 0:01:32]} 8. Bg2 {[%emt 0:00:40]} O-O {[%emt 0:00:13]} 9. O-O {[%emt 0:00:49]} Rb8 {[%emt 0:00:15]} 10. a4 {[%emt 0:03:37]} a6 {[%emt 0:02:09]} 11. Nd5 $1 {[%emt 0:03:11] 11.Nd5 scores better than 11.h3.} b5 {[%emt 0:02:52]} 12. axb5 {[%emt 0:01:14]} axb5 {[%emt 0:00:01]} 13. Bg5 {[%emt 0:03:07] B70: Sicilian Dragon: 6 g3 and 6 Be2 (without a later Be3).} Ng4 {[%emt 0:02:33]} 14. h3 {[%emt 0:05:17]} h6 {[%emt 0:14:45]} 15. Bd2 {[%emt 0:09:16] The position is equal.} ({Much weaker is} 15. hxg4 hxg5 16. Qd2 (16. Nec3 b4 $17) 16... Bxb2 $17) 15... Nge5 {[%emt 0:01:47]} 16. b3 {[%emt 0:00:33]} e6 {[%emt 0:09:38] [#]} 17. Nb4 $146 {[%emt 0:03:43]} ({Predecessor:} 17. Ne3 Qb6 18. Kh2 Bb7 19. Rc1 Rbc8 20. f4 Nd7 21. Ng4 h5 22. Be3 Qc7 23. Nf2 {0-1 (48) Pucher,S (2294)-Svane,R (2501) Metz 2014}) 17... Bb7 {[%emt 0:00:49]} 18. Bc3 {[%emt 0:04:39]} Qb6 {[%emt 0:05:29]} 19. Nxc6 {[%emt 0:02:12]} ({Avoid the trap} 19. Qxd6 $2 Rfd8 20. Bd4 Nf3+ 21. Bxf3 Bxd4 22. Qxc6 Bxc6 $19) 19... Qxc6 {[%emt 0:02:34]} 20. Bb4 {[%emt 0:05:57]} Rfd8 {[%emt 0:03:59]} 21. Nd4 {[%emt 0:00:36]} Qd7 {[%emt 0:01:13]} ({Don't play} 21... Qb6 22. Ba5 Qc5 23. Bxd8 Rxd8 24. Ra5 $16) 22. Ra7 {[%emt 0:05:31]} Ra8 {[%emt 0:07:38]} 23. Rxa8 {[%emt 0:02:03]} Rxa8 {[%emt 0:01:54]} 24. Qe2 {[%emt 0:06:11]} Nc6 {[%emt 0:04:16]} 25. Nxc6 {[%emt 0:01:05]} Qxc6 {[%emt 0:00:21]} 26. Rd1 {[%emt 0:03:14]} Rd8 {[%emt 0:06:55]} 27. Rd3 {[%emt 0:07:03]} (27. h4 {with more complications.} Bc3 28. Bxc3 Qxc3 29. Qxb5 Qxc2 30. Rd4) 27... f5 {[%emt 0:15:00][%cal Rf5e4]} 28. Qd2 {[%emt 0:01:20][%cal Rd3d6]} (28. h4 {seems wilder.} fxe4 29. Qg4 Kf7 30. Qf4+) 28... fxe4 {[%emt 0:01:16]} 29. Rxd6 {[%emt 0:00:49]} Rxd6 {[%emt 0:00:07]} 30. Qxd6 {[%emt 0:00:47]} Qxd6 {[%emt 0:01:10]} 31. Bxd6 $14 {[%emt 0:00:06][%mdl 4096] Endgame KBB-KBB} Bc3 {[%emt 0:01:14]} 32. Kf1 {[%emt 0:05:41]} e5 {[%emt 0:04:05]} 33. Ke2 {[%emt 0:01:24]} Kf7 {[%emt 0:02:30]} 34. h4 {[%emt 0:01:09]} h5 {[%emt 0:03:04]} 35. Bh3 {[%emt 0:03:51]} b4 {[%emt 0:02:19]} 36. Bc5 {[%emt 0:00:40]} Kf6 {[%emt 0:00:45]} 37. Bd7 {[%emt 0:05:47]} Ba6+ {[%emt 0:00:57]} 38. Ke3 {[%emt 0:00:47]} Bb7 {[%emt 0:00:05] Inhibits Bc6.} 39. Be8 {[%emt 0:03:39]} Bd5 {[%emt 0:01:23]} 40. Bb6 {[%emt 0:02:42]} Bb7 {[%emt 0:01:05]} 41. Bb5 {[%emt 0:32:33]} Ke7 {[%emt 0:06:04]} 42. Bc5+ {[%emt 0:00:00]} Kf6 {[%emt 0:00:45]} 43. Ke2 {[%emt 0:00:00]} Bd5 {[%emt 0:03:12]} 44. Be3 {[%emt 0:00:00] [#] aiming for Bd2.} Bd4 {[%emt 0:04:21]} 45. Bg5+ {[%emt 0:00:00] White is slightly better.} Kf7 $1 {[%emt 0:05:09]} 46. Bd2 {[%emt 0:00:00]} Bc5 {[%emt 0:00:05]} 47. Be3 {[%emt 0:00:00]} Bd4 {[%emt 0:00:46]} 48. Bd2 {[%emt 0:00:00] Weighted Error Value: White=0.03 (flawless) /Black=0.04 (flawless)} ({White should try} 48. Ke1 $14) 1/2-1/2

[Event "Summer Chess Classic-A 2022"]
[Site "Saint Louis"]
[Date "2022.06.09"]
[Round "8.4"]
[White "Yu, Yangyi"]
[Black "Hakobyan, Aram"]
[Result "1-0"]
[ECO "D37"]
[WhiteElo "2710"]
[BlackElo "2615"]
[Annotator "TA"]
[PlyCount "125"]
[EventDate "2022.05.31"]
[EventType "tourn"]
[EventCountry "USA"]
[SourceTitle "playchess.com"]
[Source "ChessBase"]
[SourceQuality "1"]
[TimeControl "40/5400+30:1800+30"]

{[%evp 9,125,13,16,16,13,11,16,18,20,18,21,22,23,28,24,25,24,22,25,24,29,28,27,27,31,33,37,32,43,29,53,43,46,22,61,55,58,52,87,77,111,97,109,78,92,65,78,66,95,88,104,82,103,91,104,61,58,58,43,40,31,45,71,40,62,16,27,24,24,25,33,47,38,45,54,38,34,15,16,20,133,142,147,140,140,133,133,133,133,133,303,296,301,293,283,234,242,238,228,158,186,159,160,143,475,189,3286,2888,2215,1893,4894,4886,29982,29983,29983,29984,29986,29987]} 1. d4 {[%emt 0:00:16]} Nf6 {[%emt 0:01:12]} 2. c4 {[%emt 0:00:13]} e6 {[%emt 0:00:28]} 3. Nf3 {[%emt 0:00:17]} d5 {[%emt 0:00:25]} 4. Nc3 {[%emt 0:02:33]} a6 {[%emt 0:04:21]} 5. c5 {[%emt 0:04:26]} b6 {[%emt 0:01:51]} 6. cxb6 {[%emt 0:00:10] D37: Queen's Gambit Declined: 5 Bf4.} cxb6 {[%emt 0:01:32]} 7. Bf4 {[%emt 0:02:47]} Bd6 {[%emt 0:00:26]} 8. Bxd6 {[%emt 0:01:36] The position is equal.} Qxd6 {[%emt 0:00:04]} 9. e3 {[%emt 0:00:11]} Nbd7 {[%emt 0:00:35]} 10. Bd3 {[%emt 0:00:36]} Bb7 {[%emt 0:00:10]} 11. O-O {[%emt 0:00:10]} O-O {[%emt 0:00:18]} 12. Qb3 {[%emt 0:00:27]} Rfc8 {[%emt 0:03:35]} 13. Rfc1 {[%emt 0:04:03] [#]} Rc6 $146 {[%emt 0:06:42]} (13... Ne4 {feels hotter.} 14. Ne2 h6 15. a3 Qe7) ({Predecessor:} 13... Rc7 14. Rc2 Rac8 15. Rac1 b5 16. Ne2 Nb6 17. Rxc7 Rxc7 18. Rxc7 Qxc7 19. Ne5 Qd6 {½-½ (58) Yu,Y (2709)-Caruana,F (2842) Chess.com INT 2020}) 14. Rc2 {[%emt 0:03:43]} Rac8 {[%emt 0:00:39]} 15. Rac1 {[%emt 0:00:16]} h6 {[%emt 0:02:21]} 16. h3 {[%emt 0:02:02]} Kf8 {[%emt 0:14:52]} 17. a3 {[%emt 0:02:02]} (17. Qa4 {keeps more tension.} Qb8 18. Nd2 Qa8 19. b4) 17... Ne8 {[%emt 0:16:23]} 18. Qa4 {[%emt 0:03:14]} b5 {[%emt 0:02:15]} 19. Qb3 {[%emt 0:04:47]} R8c7 {[%emt 0:06:43]} 20. Qa2 {[%emt 0:14:00]} Rc8 {[%emt 0:01:33]} 21. Nd2 {[%emt 0:04:25]} b4 {[%emt 0:19:08]} 22. axb4 {[%emt 0:02:05]} Qxb4 {[%emt 0:00:05]} 23. Nb3 {[%emt 0:00:20]} Rb6 {[%emt 0:00:22]} 24. Na5 {[%emt 0:01:34]} Ba8 {[%emt 0:00:10]} 25. Qa4 {[%emt 0:10:35]} Qe7 {[%emt 0:02:49]} 26. Na2 {[%emt 0:03:47]} Rcb8 {[%emt 0:00:01]} 27. b3 {[%emt 0:01:44]} g6 {[%emt 0:01:03]} 28. b4 {[%emt 0:04:40]} (28. Be2 {seems wilder.} Kg8 29. Rc8 Kg7 30. b4) 28... Kg7 {[%emt 0:00:30]} 29. Nb3 {[%emt 0:01:10]} Bb7 {[%emt 0:06:01]} 30. Nc5 {[%emt 0:00:31]} Bc8 {[%emt 0:01:20]} 31. Qa3 {[%emt 0:07:03] White is much more active.} ({But not} 31. Nxa6 $6 Bxa6 32. Bxa6 Ra8 $11) (31. Nxe6+ $6 Rxe6 32. Rxc8 Nb6 33. Rxe8 Rxe8 $11) 31... Nd6 {[%emt 0:03:36]} 32. Na4 {[%emt 0:00:17]} R6b7 {[%emt 0:00:01]} 33. Rc6 {[%emt 0:00:44]} Ra7 {[%emt 0:00:45]} 34. Qb2 {[%emt 0:07:15]} Nf6 {[%emt 0:00:37]} 35. Nc5 {[%emt 0:01:07]} a5 {[%emt 0:01:52]} 36. b5 {[%emt 0:00:14]} Bd7 {[%emt 0:00:09]} 37. Nxd7 {[%emt 0:01:08]} (37. Ra6 $14 {should be considered.} Rxa6 38. Nxa6) 37... Qxd7 $11 {[%emt 0:00:06]} 38. Qe2 {[%emt 0:05:33]} Rab7 {[%emt 0:00:54][%cal Rd6b5]} 39. Nc3 {[%emt 0:01:42]} Nfe4 {[%emt 0:01:09]} 40. Bxe4 {[%emt 0:00:23]} Nxe4 {[%emt 0:00:27]} 41. Nxe4 {[%emt 0:34:12]} dxe4 {[%emt 0:30:03]} 42. R1c5 {[%emt 0:02:02]} a4 {[%emt 0:00:56]} 43. Qc4 {[%emt 0:00:00]} a3 {[%emt 0:00:00]} 44. d5 {[%emt 0:00:00]} a2 {[%emt 0:00:00]} (44... exd5 $11 {keeps the balance.} 45. Rxd5 Qe7) 45. Qxa2 $16 {[%emt 0:00:00]} Rxb5 {[%emt 0:00:00]} 46. Qa1+ {[%emt 0:00:00]} ({Much weaker is} 46. dxe6 $6 Qd1+ 47. Kh2 Rxc5 $11) 46... Kh7 {[%emt 0:00:00] [#]} 47. Qe5 $1 {[%emt 0:00:00][%csl LRe4,LRe6]} Rxc5 {[%emt 0:00:00]} 48. Rxc5 {[%emt 0:00:00][%mdl 4096] Endgame KQR-KQR} Rb1+ {[%emt 0:02:06]} 49. Kh2 {[%emt 0:00:00] Threatens to win with Rc7.} Rb7 {[%emt 0:02:03] [#] Inhibits Rc7.} (49... Rd1 $16) 50. d6 $1 $18 {[%emt 0:00:00] And now Rc7 would win.} f6 {[%emt 0:00:19]} (50... Rb6 $2 51. Rc7 Qxd6 52. Rxf7+ Kg8 53. Rg7+ Kh8 54. Qxd6 Rxd6 55. Rxg6 $18) 51. Qd4 {[%emt 0:00:00]} ({Not} 51. Qxf6 Qxd6+ 52. Qe5 Qf8 $16) 51... h5 {[%emt 0:00:03]} 52. g3 {[%emt 0:00:00]} e5 {[%emt 0:00:12]} 53. Qxe4 {[%emt 0:00:00]} Kh6 {[%emt 0:00:01][%cal Od7d6]} 54. Rd5 {[%emt 0:00:00]} Rb2 {[%emt 0:01:09]} 55. Kg2 {[%emt 0:00:00] Black must now prevent g4.} Rb6 {[%emt 0:00:32]} 56. Qd3 {[%emt 0:00:00]} Kg7 $2 {[%emt 0:00:54][%mdl 8192] A mistake that costs the game.} (56... g5 $16 57. e4 Rb8) 57. e4 $2 {[%emt 0:00:00]} (57. h4 {Strongly threatening e4.} Rb2 58. Qa3) 57... Rc6 $2 {[%emt 0:00:37]} (57... g5 58. h4 g4) 58. Qb5 {[%emt 0:00:00][%cal Ob5c6] Qxc6! is the strong threat.} Kf7 {[%emt 0:00:02]} 59. Rd1 {[%emt 0:00:00] aiming for Qd5+.} Ke8 {[%emt 0:00:12]} 60. Qd5 {[%emt 0:00:00][%cal Rd5g8]} Kd8 {[%emt 0:00:01]} 61. Qg8+ {[%emt 0:00:00] White mates.} Qe8 {[%emt 0:00:17]} 62. Qg7 {[%emt 0:00:12]} Qe6 {[%emt 0:00:09]} 63. Ra1 {[%emt 0:00:49] Weighted Error Value: White=0.13 (very precise) /Black=0.29 (precise)} 1-0

[Event "Summer Chess Classic-A 2022"]
[Site "Saint Louis"]
[Date "2022.06.10"]
[Round "9.1"]
[White "Mishra, Abhimanyu"]
[Black "Theodorou, Nikolas"]
[Result "1/2-1/2"]
[ECO "C54"]
[WhiteElo "2535"]
[BlackElo "2567"]
[Annotator "TA"]
[PlyCount "94"]
[EventDate "2022.05.31"]
[EventType "tourn"]
[EventCountry "USA"]
[SourceTitle "playchess.com"]
[Source "ChessBase"]
[SourceQuality "1"]
[TimeControl "40/5400+30:1800+30"]

{[%evp 11,94,18,27,17,31,16,19,6,16,14,25,18,10,11,16,9,25,14,20,16,13,5,12,11,0,2,3,7,5,3,3,6,6,4,6,6,6,4,7,4,5,8,7,0,0,0,0,0,0,0,0,-3,-4,-5,-4,-6,-5,-5,0,0,0,-17,0,0,0,0,0,-13,0,0,0,0,0,0,0,0,0,0,0,0,0,0,0,0,0]} 1. e4 {[%emt 0:00:02]} e5 {[%emt 0:02:05]} 2. Nf3 {[%emt 0:00:07]} Nc6 {[%emt 0:00:05]} 3. Bc4 {[%emt 0:00:14]} Nf6 {[%emt 0:00:07]} 4. d3 {[%emt 0:00:10]} Bc5 {[%emt 0:00:06]} 5. c3 {[%emt 0:00:21]} a6 {[%emt 0:00:07]} 6. O-O {[%emt 0:01:41]} Ba7 {[%emt 0:00:10]} 7. a4 {[%emt 0:01:52] C54: Giuoco Piano: 4 c3 Nf6, main lines with 5 d4 and 5 d3.} O-O {[%emt 0:00:13]} 8. Re1 {[%emt 0:01:38]} d6 {[%emt 0:00:37]} 9. h3 {[%emt 0:00:25]} h6 {[%emt 0:00:07]} 10. Nbd2 {[%emt 0:01:02]} Re8 {[%emt 0:00:10]} 11. b4 $1 {[%emt 0:01:58] The main line 11.b4 scores better than 11.Nf1.} Be6 {[%emt 0:00:18]} 12. Bxe6 {[%emt 0:00:56]} Rxe6 {[%emt 0:00:07]} 13. Qc2 {[%emt 0:00:45]} Qd7 {[%emt 0:00:10]} 14. Rb1 {[%emt 0:01:55]} b5 {[%emt 0:00:14] The position is equal.} 15. Ra1 {[%emt 0:00:19]} Rae8 {[%emt 0:00:05]} 16. Nf1 {[%emt 0:06:35]} d5 {[%emt 0:00:35]} 17. Bd2 {[%emt 0:00:43] [#]} Rd8 $146 {[%emt 0:00:17]} ({Predecessor:} 17... Bb6 18. Ng3 Rd8 19. a5 Ba7 20. Rac1 dxe4 21. dxe4 Rd6 22. Be3 Bxe3 23. Rxe3 Rd1+ {1-0 (57) Ragger,M (2647)-Wagner,D (2584) Terme Catez 2022}) 18. Ng3 {[%emt 0:09:11]} dxe4 {[%emt 0:00:20]} 19. dxe4 {[%emt 0:00:17]} Rd6 {[%emt 0:00:04][%cal Rd6d2]} 20. Be3 {[%emt 0:10:47]} Bxe3 {[%emt 0:00:16]} 21. Rxe3 {[%emt 0:00:06]} Rd1+ {[%emt 0:00:04]} 22. Re1 {[%emt 0:00:55]} Rxa1 {[%emt 0:00:05]} 23. Rxa1 {[%emt 0:00:09]} Qd3 {[%emt 0:00:04]} 24. Qxd3 {[%emt 0:05:10]} Rxd3 {[%emt 0:01:59]} 25. axb5 {[%emt 0:00:46]} axb5 {[%emt 0:00:03]} 26. Rc1 {[%emt 0:02:22]} g6 {[%emt 0:11:17]} 27. Kf1 {[%emt 0:06:29]} Nd7 {[%emt 0:02:28]} 28. c4 {[%emt 0:13:05]} bxc4 {[%emt 0:10:27]} ({Don't do} 28... Nxb4 29. cxb5 Rb3 30. Rxc7 Rb1+ 31. Ke2 Rb2+ 32. Kd1 Rb1+ 33. Rc1 $16) 29. Rxc4 {[%emt 0:00:26]} Rd1+ {[%emt 0:00:23]} 30. Ke2 {[%emt 0:02:21]} Rd6 {[%emt 0:00:06]} 31. b5 {[%emt 0:01:49]} Na7 {[%emt 0:00:46]} 32. Rxc7 {[%emt 0:00:17]} Nxb5 {[%emt 0:00:08]} 33. Rc8+ {[%emt 0:00:13]} Kg7 {[%emt 0:00:30]} 34. Nf1 {[%emt 0:00:32]} Nb6 {[%emt 0:02:26]} 35. Rc1 {[%emt 0:05:10]} Na4 {[%emt 0:05:20]} 36. N1d2 {[%emt 0:00:31]} Nbc3+ {[%emt 0:02:09]} 37. Ke1 {[%emt 0:01:26]} f6 {[%emt 0:00:55]} 38. Nc4 {[%emt 0:01:43]} Rc6 {[%emt 0:09:00]} 39. Nfd2 {[%emt 0:01:38]} h5 {[%emt 0:01:02]} 40. h4 {[%emt 0:02:52]} Rc8 {[%emt 0:04:41]} 41. f3 {[%emt 0:30:31]} Rb8 {[%emt 0:33:20]} 42. Kf2 {[%emt 0:01:55]} Rd8 {[%emt 0:00:14]} 43. Ke1 {[%emt 0:01:50]} Rb8 {[%emt 0:09:12]} 44. Kf2 {[%emt 0:00:27]} Nb2 {[%emt 0:00:38] [#] Threatens to win with ...Nd3+.} 45. Nxb2 {[%emt 0:00:13]} Rxb2 {[%emt 0:00:06]} 46. Rxc3 {[%emt 0:00:22]} Rxd2+ {[%emt 0:00:05]} 47. Kg3 {[%emt 0:00:09]} Rd7 {[%emt 0:00:05] A balanced but interesting game.  Weighted Error Value: White=0.03 (flawless) /Black=0.02 (flawless)} 1/2-1/2

[Event "Summer Chess Classic-A 2022"]
[Site "Saint Louis"]
[Date "2022.06.10"]
[Round "9.2"]
[White "Hakobyan, Aram"]
[Black "Smirin, Ilia"]
[Result "1/2-1/2"]
[ECO "B30"]
[WhiteElo "2615"]
[BlackElo "2599"]
[Annotator "TA"]
[PlyCount "67"]
[EventDate "2022.05.31"]
[EventType "tourn"]
[EventCountry "USA"]
[SourceTitle "playchess.com"]
[Source "ChessBase"]
[SourceQuality "1"]
[TimeControl "40/5400+30:1800+30"]

{[%evp 9,67,10,8,0,31,28,27,0,43,41,39,37,33,34,32,18,42,31,31,25,27,27,42,14,32,48,30,0,0,0,0,0,0,0,41,0,0,0,0,0,0,0,0,-16,0,0,0,0,0,0,0,0,0,0,0,0,0,0,0,0]} 1. e4 {[%emt 0:02:03]} c5 {[%emt 0:00:19]} 2. Nf3 {[%emt 0:00:31]} Nc6 {[%emt 0:00:48]} 3. Bb5 {[%emt 0:00:39]} e6 {[%emt 0:00:38]} 4. Bxc6 {[%emt 0:04:43]} bxc6 {[%emt 0:00:30]} 5. d3 {[%emt 0:00:03]} Ne7 {[%emt 0:01:13]} 6. Nbd2 {[%emt 0:00:10] B30: Sicilian: 2...Nc6 3 Bb5, lines without ...g6.} f6 {[%emt 0:06:38] [#]} 7. Nh4 $146 {[%emt 0:03:14][%cal Oe4e5]} ({Predecessor:} 7. Nb3 Ng6 8. Be3 d6 9. Nfd2 e5 10. Qh5 Be7 11. O-O O-O 12. f4 exf4 13. Bxf4 f5 {0-1 (32) Facchetti,G (2190)-Nijboer,F (2568) Porto San Giorgio 2004}) 7... e5 {[%emt 0:02:33]} 8. O-O {[%emt 0:01:47] White has an edge.} d6 {[%emt 0:03:55]} 9. f4 {[%emt 0:03:50]} exf4 {[%emt 0:02:54]} 10. Rxf4 {[%emt 0:00:07]} Be6 {[%emt 0:01:35]} 11. b3 {[%emt 0:05:15]} Qd7 {[%emt 0:12:24] [#] White must now prevent ...g5.} 12. Bb2 {[%emt 0:02:58]} O-O-O {[%emt 0:02:57]} 13. Rf1 {[%emt 0:00:53]} d5 {[%emt 0:02:28]} 14. Qe1 {[%emt 0:04:48]} Ng6 {[%emt 0:00:45]} 15. Nhf3 {[%emt 0:02:36]} Bd6 {[%emt 0:00:41]} 16. Qf2 {[%emt 0:01:29]} Qc7 {[%emt 0:04:27]} 17. exd5 {[%emt 0:15:04]} cxd5 {[%emt 0:00:42]} 18. d4 {[%emt 0:00:06]} (18. b4 $5) 18... c4 {[%emt 0:02:41]} 19. bxc4 {[%emt 0:07:21]} dxc4 {[%emt 0:00:13]} 20. Ne4 {[%emt 0:00:04]} Bd5 {[%emt 0:01:05] A strong pair of Bishops.} 21. Nc3 {[%emt 0:02:01]} Qc6 {[%emt 0:05:23]} 22. Rab1 {[%emt 0:12:45]} Rhe8 {[%emt 0:01:26] The position is equal.} 23. Bc1 {[%emt 0:01:41]} a6 {[%emt 0:14:14]} 24. Nh4 {[%emt 0:03:30]} Nxh4 $1 {[%emt 0:04:14]} 25. Qxh4 {[%emt 0:00:04]} Bc7 {[%emt 0:03:49]} 26. Qf2 {[%emt 0:02:36]} g5 {[%emt 0:04:02] Inhibits Bf4.} 27. Nxd5 {[%emt 0:04:31]} Rxd5 {[%emt 0:03:06]} 28. Ba3 {[%emt 0:04:57] Against Qd6} f5 {[%emt 0:03:05]} 29. Bc5 {[%emt 0:00:07]} f4 {[%emt 0:06:19]} 30. Rfe1 {[%emt 0:00:57]} Rdd8 {[%emt 0:01:32]} 31. Be7 {[%emt 0:06:32]} Rd7 {[%emt 0:00:16]} 32. Bc5 {[%emt 0:01:07]} ({Don't play} 32. Bxg5 Rg8 33. Be7 Rxd4 $17) 32... Rdd8 {[%emt 0:00:22]} 33. Be7 {[%emt 0:01:04]} Rd7 {[%emt 0:00:30]} 34. Bc5 {[%emt 0:00:02] Weighted Error Value: White=0.05 (flawless) /Black=0.04 (flawless)} ({Of course not} 34. Bxg5 Rg8 35. Bh4 Rdg7 $17) 1/2-1/2

[Event "Summer Chess Classic-A 2022"]
[Site "Saint Louis"]
[Date "2022.06.10"]
[Round "9.3"]
[White "Bjerre, Jonas Buhl"]
[Black "Yu, Yangyi"]
[Result "0-1"]
[ECO "E06"]
[WhiteElo "2610"]
[BlackElo "2710"]
[Annotator "TA"]
[PlyCount "74"]
[EventDate "2022.05.31"]
[EventType "tourn"]
[EventCountry "USA"]
[SourceTitle "playchess.com"]
[Source "ChessBase"]
[SourceQuality "1"]
[TimeControl "40/5400+30:1800+30"]

{[%evp 13,74,6,14,23,20,22,32,24,6,6,40,44,44,0,-2,-34,-35,-14,-19,-31,-21,-62,-42,-42,-46,-74,-68,-57,-65,-66,-59,-60,-52,-52,-57,-54,-59,-111,-110,-110,-118,-114,-132,-175,-175,-241,-241,-240,-239,-229,-230,-242,-227,-237,-231,-180,-180,-295,-263,-325,-315,-308,-294]} 1. d4 {[%emt 0:00:04]} Nf6 {[%emt 0:00:14]} 2. c4 {[%emt 0:00:08]} e6 {[%emt 0:00:07]} 3. Nf3 {[%emt 0:00:06]} d5 {[%emt 0:00:12]} 4. g3 {[%emt 0:00:10]} Be7 {[%emt 0:01:10]} 5. Bg2 {[%emt 0:00:19]} O-O {[%emt 0:00:10]} 6. Nc3 {[%emt 0:01:31]} dxc4 {[%emt 0:02:26]} 7. Ne5 {[%emt 0:00:46]} Nc6 {[%emt 0:00:07]} 8. Bxc6 {[%emt 0:00:32] E06: Closed Catalan: Early deviations.} bxc6 {[%emt 0:00:07]} 9. Nxc6 {[%emt 0:00:08] Pair of Knights!} Qe8 {[%emt 0:00:07]} 10. Nxe7+ {[%emt 0:00:07] White is slightly better.} Qxe7 {[%emt 0:00:06]} 11. Qa4 {[%emt 0:00:43]} Nd5 {[%emt 0:00:20][%cal Bf6d5,Bd5b4,Bb4d3][%mdl 32]} 12. O-O {[%emt 0:03:02]} a5 {[%emt 0:00:27][%cal Ba7a5,Ba5a4][%mdl 32] [#]} 13. e4 $146 {[%emt 0:05:12]} (13. Re1 $14 {might be stronger.}) ({Predecessor:} 13. Re1 Rd8 14. Qxc4 Qb4 15. Qxb4 Nxb4 16. Rd1 Nc2 17. Bg5 f6 18. Rac1 Nxd4 19. Be3 {½-½ (63) Svane,R (2637)-Nisipeanu,L (2652) Germany 2022}) 13... Nb4 $11 {[%emt 0:06:47]} 14. Be3 {[%emt 0:10:47]} Bd7 {[%emt 0:00:14]} 15. Qd1 {[%emt 0:03:15]} a4 {[%emt 0:01:05]} 16. Qe2 {[%emt 0:12:22]} Nd3 {[%emt 0:00:43]} 17. Rab1 {[%emt 0:02:01]} Rfb8 {[%emt 0:02:58]} 18. Qd2 {[%emt 0:10:36][%cal Ob2b3]} a3 {[%emt 0:13:44][%cal Ra3b2]} 19. bxa3 {[%emt 0:06:29]} Qxa3 {[%emt 0:00:22]} 20. Rxb8+ {[%emt 0:01:13]} Rxb8 {[%emt 0:00:17]} 21. Rb1 {[%emt 0:00:35]} Rxb1+ {[%emt 0:06:53]} 22. Nxb1 {[%emt 0:00:06]} Qa8 {[%emt 0:00:22]} 23. Qc2 {[%emt 0:07:23]} Qxe4 {[%emt 0:08:37]} 24. Nd2 {[%emt 0:00:26]} Qb7 {[%emt 0:04:42] aiming for ...Ne1.} 25. Qxc4 {[%emt 0:05:13]} (25. Qb1 $1 $15 Qxb1+ 26. Nxb1) 25... Bb5 $17 {[%emt 0:01:34] 0x0.001762da3df8dp-1022s more active pieces.} 26. Qc2 {[%emt 0:01:42]} Ne1 $1 {[%emt 0:01:58][%csl Ge1][%cal Rb7g2]} 27. Qe4 {[%emt 0:00:08] Prevents Qg2+.} Bc6 $40 {[%emt 0:00:26][%mdl 128] Black wants a kill.} 28. Qg4 {[%emt 0:07:29]} Bf3 {[%emt 0:07:46]} 29. Qh3 {[%emt 0:03:00] [#]} (29. Qg5 $142 h6 30. Qc5) 29... Be2 $1 $19 {[%emt 0:08:48] ( -> ...Nf3+)} 30. f4 {[%emt 0:00:41]} Nf3+ {[%emt 0:01:03]} 31. Kf2 {[%emt 0:02:50]} Nxd2 {[%emt 0:00:14]} 32. Kxe2 {[%emt 0:01:16][%mdl 4096] Endgame KQB-KQN} Nc4 {[%emt 0:00:39] And now ...Qb2+ would win.} 33. Qf1 {[%emt 0:03:04] [#]} Qb2+ $1 {[%emt 0:01:03]} ({Worse is} 33... Qe4 34. Qc1 Qd5 35. Kf2 $17) 34. Kf3 {[%emt 0:00:19]} Qxa2 {[%emt 0:00:08]} 35. Bc1 {[%emt 0:02:08]} (35. Qe2 {was worth a try.} Qa8+ 36. Kf2) 35... Qc2 {[%emt 0:00:54] Black has a decisive advantage.} 36. Kg4 {[%emt 0:01:02]} Qf5+ {[%emt 0:01:19]} 37. Kf3 {[%emt 0:00:05]} Qd5+ {[%emt 0:00:08] Weighted Error Value: White=0.17 (very precise) /Black=0.05 (flawless)} 0-1